[Event "45th FIDE Olympiad 2024"]
[Site "Budapest"]
[Date "2024.09.13"]
[Round "3.56"]
[White "Frempong-Smart, Daniel"]
[Black "Mtsetfwa, Philani"]
[Result "1-0"]
[ECO "D11"]
[WhiteElo "1863"]
[BlackElo "1688"]
[Annotator "NA RC"]
[PlyCount "209"]
[EventDate "2024.09.05"]
[EventType "team-tourn"]
[EventCountry "HUN"]
[SourceTitle "playchess.com"]
[Source "ChessBase"]
[SourceQuality "1"]
[WhiteTeam "Ghana"]
[BlackTeam "Eswatini"]
[WhiteTeamCountry "GHA"]
[TimeControl "40/5400+30:1800+30"]

1. d4 Nf6 2. Nf3 d5 3. g3 Bf5 4. Bg2 e6 5. O-O Bd6 6. c4 c6 7. Nbd2 h6 8. Re1 O-O 9. b3 Nbd7 10. Bb2 Qc7 11. Rc1 Ne4 12. cxd5 exd5 13. Nh4 Bh7 14. Nxe4 dxe4 15. Bh3 Nf6 16. e3 Qa5 17. Bc3 Qd5 18. Bf1 Qe6 19. Rc2 g5 20. Ng2 Bg6 21. Be2 Nd5 22. Bd2 f5 23. Bh5 Kg7 24. Bxg6 Kxg6 25. Qe2 g4 26. h4 h5 27. Rb1 Qe7 28. b4 a6 29. Rcb2 Nb6 30. Be1 Qf7 31. Qd1 Nc4 32. Rb3 b5 33. Bd2 Qd5 34. Qc2 Kh6 35. Bc3 Kg6 36. Ra1 Rf7 37. a4 Rfa7 38. Ra2 Kh6 39. Rb1 Bb8 40. Rba1 Qd7 41. Qe2 Kg6 42. Ne1 Qd5 43. Ng2 Qd7 44. Kh2 Kh6 45. Rd1 Qd5 46. Raa1 Nb6 47. a5 Nc4 48. Kg1 Bd6 49. Ne1 Rc7 50. Rac1 Kg6 51. Nc2 Rac8 52. Na1 Rd7 53. Nb3 Rcd8 54. Na1 Be7 55. Kg2 Bd6 56. Re1 Be7 57. Qd1 Bd6 58. Nb3 Kf7 59. Ra1 Be7 60. Qc2 Ke8 61. Nc1 Bd6 62. Rd1 Kf7 63. Ne2 Bc7 64. Be1 Bd6 65. Nc3 Qe6 66. d5 cxd5 67. Nxd5 Be5 68. Nc3 Rxd1 69. Rxd1 Rxd1 70. Qxd1 Nb2 71. Qd8 Nd3 72. Bd2 Bf6 73. Qc7+ Kg6 74. Kf1 Be5 75. Qd8 Bf6 76. Qc7 Be5 77. Qb6 Kf7 78. Qb7+ Kg6 79. Nd5 Qd6 80. Ne7+ Kf6 81. Ng8+ Kg6 82. Qc8 Kg7 83. Qe8 Qf8 84. Qxf8+ Kxf8 85. Nh6 Bd6 86. Nxf5 Bxb4 87. Bxb4+ Nxb4 88. Nd6 Nc6 89. Nxe4 Ke7 90. Nc5 Nxa5 91. Nxa6 Nc6 92. Nc5 Kd6 93. Nd3 b4 94. Ke2 Kd5 95. Nf4+ Kc4 96. Kd2 Kb3 97. Nxh5 Ka2 98. Nf4 b3 99. Nd5 b2 100. Nc3+ Ka1 101. h5 Nb4 102. h6 Nd5 103. h7 Nxc3 104. h8=Q Ne4+ 105. Kc2 1-0

[Event "45th FIDE Olympiad 2024"]
[Site "Budapest"]
[Date "2024.09.13"]
[Round "3.57"]
[White "Predke, Alexandr"]
[Black "Bogner, Sebastian"]
[Result "1/2-1/2"]
[ECO "C43"]
[WhiteElo "2671"]
[BlackElo "2545"]
[Annotator "TA"]
[PlyCount "120"]
[EventDate "2024.09.05"]
[EventType "team-tourn"]
[EventCountry "HUN"]
[SourceTitle "playchess.com"]
[Source "ChessBase"]
[SourceQuality "1"]
[WhiteTeam "Serbia"]
[BlackTeam "Switzerland"]
[WhiteTeamCountry "SRB"]
[BlackTeamCountry "SUI"]
[TimeControl "40/5400+30:1800+30"]

{[%evp 42,120,20,20,20,20,20,0,19,0,25,12,8,0,14,0,14,0,36,0,0,0,10,0,0,0,0,0,0,0,56,47,47,24,59,30,49,50,66,14,15,16,70,2,63,60,67,29,90,29,41,35,101,76,177,0,0,0,0,0,0,0,21,6,25,0,0,0,0,0,0,0,0,0,0,0,0,0,0,0,0]} 1. e4 {[%emt 0:00:10]} e5 {[%emt 0:00:07]} 2. Nf3 {[%emt 0:00:08]} Nf6 {[%emt 0:00:05]} 3. d4 {[%emt 0:00:04]} Nxe4 {[%emt 0:00:14]} 4. Bd3 {[%emt 0:00:03]} d5 {[%emt 0:00:27]} 5. Nxe5 {[%emt 0:00:08]} Nd7 {[%emt 0:01:47]} 6. Nc3 {[%emt 0:00:29]} Nxc3 {[%emt 0:00:53] C43: Petroff Defence: 3 d4.} 7. bxc3 {[%emt 0:00:10]} Bd6 {[%emt 0:00:29] seems to push 7...Nxe5 aside.} 8. O-O {[%emt 0:00:45]} O-O {[%emt 0:00:48]} 9. Bf4 {[%emt 0:01:45]} Bxe5 {[%emt 0:16:34]} 10. Bxe5 {[%emt 0:00:08]} Nxe5 {[%emt 0:09:46]} 11. dxe5 {[%emt 0:00:06]} f6 $146 {[%emt 0:06:43]} ({Predecessor:} 11... c5 12. f4 f5 13. exf6 Qxf6 14. Qh5 Bf5 15. Rae1 Qf7 16. Qxf7+ Rxf7 17. Bxf5 Rxf5 18. Re7 Rf7 19. Rfe1 Kf8 20. R7e5 Rd8 21. f5 {½-½ Van der Wiel,J (2505)-Atalik,E (2399) Corus-C Wijk aan Zee 2006 (5)}) 12. Qh5 {[%emt 0:07:59]} f5 {[%emt 0:05:54]} 13. f4 {[%emt 0:06:42]} Qe7 {[%emt 0:05:05]} 14. Qf3 {[%emt 0:03:28]} Qc5+ {[%emt 0:01:56]} 15. Kh1 {[%emt 0:01:34]} c6 {[%emt 0:03:43]} 16. Be2 {[%emt 0:06:54]} Be6 {[%emt 0:00:33]} 17. Qd3 {[%emt 0:04:11]} Rf7 {[%emt 0:03:41]} 18. a4 {[%emt 0:01:35]} Qa5 {[%emt 0:04:46]} 19. Rfb1 {[%emt 0:03:12]} Rd8 {[%emt 0:00:21]} 20. Qe3 {[%emt 0:00:35]} Rfd7 {[%emt 0:08:58]} 21. Rb4 {[%emt 0:01:02]} Re7 {[%emt 0:01:27]} 22. h3 {[%emt 0:09:57]} Rf7 {[%emt 0:01:32]} 23. Kh2 {[%emt 0:00:23]} Rdd7 {[%emt 0:01:51]} 24. Ra3 {[%emt 0:05:36]} Rf8 {[%emt 0:00:47]} 25. Rb1 {[%emt 0:07:15]} g6 {[%emt 0:04:01]} 26. Rd1 {[%emt 0:03:33]} Rfd8 {[%emt 0:00:44]} 27. Qf2 {[%emt 0:05:28]} Rf7 {[%emt 0:01:27]} 28. Rd3 {[%emt 0:03:00]} Rfd7 {[%emt 0:00:49]} 29. Ra1 {[%emt 0:07:22]} c5 {[%emt 0:04:43]} 30. Rg3 {[%emt 0:03:55]} Rg7 {[%emt 0:01:47]} 31. h4 {[%emt 0:03:35]} h5 {[%emt 0:02:11]} 32. Ra3 {[%emt 0:06:59]} c4 {[%emt 0:01:56]} 33. Ra1 {[%emt 0:00:41]} Rdd7 {[%emt 0:01:14]} 34. Qe3 {[%emt 0:01:12]} b6 {[%emt 0:04:16]} 35. Qd4 {[%emt 0:03:02]} Qc5 {[%emt 0:01:36]} ({Black should try} 35... Rc7 $11) 36. Qxc5 {[%emt 0:00:48]} bxc5 {[%emt 0:00:04]} 37. Rb1 {[%emt 0:00:01]} Kh7 {[%emt 0:00:58]} 38. Rb5 {[%emt 0:02:16]} Rc7 {[%emt 0:03:17]} 39. Rf3 {[%emt 0:00:40]} Rgd7 {[%emt 0:00:58]} 40. Rf1 {[%emt 0:00:20]} (40. Ra5 $14) 40... d4 $11 {[%emt 0:01:00]} 41. Rd1 {[%emt 0:31:09]} Kg7 {[%emt 0:06:32]} (41... dxc3 $11 42. Rxd7+ Bxd7) 42. a5 {[%emt 0:00:00]} (42. Kg3 $14) 42... Kf7 {[%emt 0:01:02]} (42... dxc3 $11 43. Rxd7+ Bxd7) 43. a6 {[%emt 0:00:00]} Ke7 {[%emt 0:00:51]} 44. Kg3 {[%emt 0:00:00]} Rc6 {[%emt 0:06:01]} (44... dxc3 $11 {remains equal.} 45. Rxd7+ Kxd7) 45. Ra5 {[%emt 0:00:00]} (45. Kf2 $16) 45... dxc3 $11 {[%emt 0:09:21]} 46. Rb1 {[%emt 0:00:00]} Bd5 {[%emt 0:02:50]} (46... Rcc7 $14) 47. Ra3 {[%emt 0:00:00]} Rb6 {[%emt 0:03:01]} (47... Be4 $16) 48. Rc1 $2 {[%emt 0:00:00]} ({Only move:} 48. Rxb6 $18 axb6 49. a7 (49. Rxc3 Ra7 $11)) 48... Be6 $11 {[%emt 0:02:10]} 49. Rxc3 {[%emt 0:04:08]} Rxa6 {[%emt 0:01:12]} 50. Rb1 {[%emt 0:00:54]} Ra4 {[%emt 0:00:49]} 51. Rb5 {[%emt 0:00:11]} Rc7 {[%emt 0:00:31]} 52. Kf2 {[%emt 0:00:54]} Bd5 {[%emt 0:00:26]} 53. g3 {[%emt 0:00:46]} Kd7 {[%emt 0:00:30]} 54. Ke3 {[%emt 0:00:27]} Rc8 {[%emt 0:00:35]} 55. Rb1 {[%emt 0:00:43]} Kc7 {[%emt 0:00:32]} 56. Kf2 {[%emt 0:00:48]} Rb8 {[%emt 0:00:33]} 57. Rd1 {[%emt 0:00:14]} Rd8 {[%emt 0:00:06]} 58. Rb1 {[%emt 0:00:50]} Rb8 {[%emt 0:00:09]} 59. Rd1 {[%emt 0:00:10]} Rd8 {[%emt 0:00:02]} 60. Rb1 {[%emt 0:00:18]} Rb8 {[%emt 0:04:38]} 1/2-1/2

[Event "45th FIDE Olympiad 2024"]
[Site "Budapest"]
[Date "2024.09.13"]
[Round "3.57"]
[White "Hemam, Moulaye Brahim"]
[Black "Moncur, Cecil"]
[Result "0-1"]
[ECO "A42"]
[WhiteElo "1977"]
[BlackElo "1839"]
[Annotator "NA RC"]
[PlyCount "54"]
[EventDate "2024.09.05"]
[EventType "team-tourn"]
[EventCountry "HUN"]
[SourceTitle "playchess.com"]
[Source "ChessBase"]
[SourceQuality "1"]
[WhiteTeam "Mauritania"]
[BlackTeam "Bahamas"]
[WhiteTeamCountry "MAU"]
[BlackTeamCountry "BAH"]
[TimeControl "40/5400+30:1800+30"]

1. d4 g6 2. c4 Bg7 3. Nc3 d6 4. e4 Nc6 5. Be3 e5 6. d5 Nce7 7. g4 f5 8. gxf5 gxf5 9. Qh5+ Ng6 10. exf5 Qh4 11. Qf3 N6e7 12. Bd3 Nh6 13. Qe2 Nhxf5 14. Nf3 Qh5 15. Nb5 Kd8 16. Ng5 Qe8 17. Nxa7 Nxe3 18. Nxc8 Ng2+ 19. Kf1 Nf4 20. Qg4 Rxc8 21. Bxh7 Bh6 22. h4 Bxg5 23. hxg5 Qf7 24. Qh4 Neg6 25. Qh6 b6 26. Rh2 c5 27. Re1 Rc7 0-1

[Event "45th FIDE Olympiad 2024"]
[Site "Budapest"]
[Date "2024.09.13"]
[Round "3.58"]
[White "Pelletier, Yannick"]
[Black "Sarana, Alexey"]
[Result "1/2-1/2"]
[ECO "E08"]
[WhiteElo "2526"]
[BlackElo "2713"]
[Annotator "TA"]
[PlyCount "120"]
[EventDate "2024.09.05"]
[EventType "team-tourn"]
[EventCountry "HUN"]
[SourceTitle "playchess.com"]
[Source "ChessBase"]
[SourceQuality "1"]
[WhiteTeam "Switzerland"]
[BlackTeam "Serbia"]
[WhiteTeamCountry "SUI"]
[BlackTeamCountry "SRB"]
[TimeControl "40/5400+30:1800+30"]

{[%evp 60,120,214,206,337,329,332,321,309,298,379,381,439,439,452,444,449,461,529,445,431,329,453,114,114,102,113,118,121,102,107,127,122,104,93,56,69,50,90,77,152,125,113,103,89,80,70,70,70,31,34,33,30,8,54,54,47,31,30,0,0,0,0]} 1. c4 {[%emt 0:00:12]} e6 {[%emt 0:00:10]} 2. g3 {[%emt 0:00:11]} d5 {[%emt 0:00:09]} 3. Bg2 {[%emt 0:00:08]} Nf6 {[%emt 0:00:07]} 4. Nf3 {[%emt 0:00:09]} Be7 {[%emt 0:00:08]} 5. d4 {[%emt 0:00:12]} O-O {[%emt 0:00:07]} 6. O-O {[%emt 0:00:13]} c6 {[%emt 0:00:22]} 7. Qc2 {[%emt 0:02:01]} b6 {[%emt 0:00:09]} 8. Rd1 {[%emt 0:06:36]} Bb7 {[%emt 0:03:34]} 9. b3 {[%emt 0:01:31]} Nbd7 {[%emt 0:01:26]} 10. Nc3 {[%emt 0:01:32]} Ba6 {[%emt 0:04:49] E08: Closed Catalan: Main Line: 7 Qc2.} 11. Bf4 {[%emt 0:20:03] 11.Bb2 is the modern continuation.} dxc4 {[%emt 0:06:34]} 12. bxc4 {[%emt 0:02:54]} Qc8 {[%emt 0:25:08]} 13. Qb3 $146 {[%emt 0:10:27]} ({Predecessor:} 13. Ne5 Nxe5 14. dxe5 Nd7 15. Ne4 Qc7 16. Nf6+ Bxf6 17. exf6 e5 18. fxg7 Kxg7 19. Qf5 {1-0 Sivuk,V (2565)-Omelja,A (2478) Ghent op 43rd 2022 (6)}) 13... Rd8 {[%emt 0:04:52]} 14. e4 {[%emt 0:05:42]} Ne8 {[%emt 0:00:10]} 15. e5 {[%emt 0:01:31]} Rb8 {[%emt 0:02:31]} 16. a4 {[%emt 0:01:30]} Nf8 {[%emt 0:01:53]} 17. Rac1 {[%emt 0:05:46]} Rb7 {[%emt 0:02:05]} 18. Ne4 {[%emt 0:04:17]} Rbd7 {[%emt 0:00:24]} 19. c5 {[%emt 0:08:45]} bxc5 {[%emt 0:05:23]} 20. dxc5 {[%emt 0:05:52]} Bc4 {[%emt 0:11:04]} 21. Qb1 {[%emt 0:01:14]} Rxd1+ {[%emt 0:04:43]} 22. Rxd1 {[%emt 0:00:04]} Bd5 {[%emt 0:00:06]} 23. Nd6 {[%emt 0:01:05]} Qd7 {[%emt 0:00:21]} 24. Rd4 {[%emt 0:02:14]} a5 {[%emt 0:02:36]} 25. Rd2 {[%emt 0:01:58]} Qa7 {[%emt 0:06:18]} 26. Rb2 {[%emt 0:00:14]} Bxd6 {[%emt 0:02:20]} 27. cxd6 {[%emt 0:00:19]} c5 {[%emt 0:00:13]} 28. Bd2 {[%emt 0:03:39]} Qa8 {[%emt 0:01:44]} 29. Ne1 {[%emt 0:00:14]} f6 {[%emt 0:02:59]} 30. f4 {[%emt 0:00:30]} Nd7 {[%emt 0:01:57]} 31. Bc3 {[%emt 0:00:12]} c4 {[%emt 0:00:03]} (31... Bxg2 {keeps fighting.} 32. Nxg2 fxe5) 32. Bxd5 $18 {[%emt 0:03:08]} Qxd5 {[%emt 0:00:31]} 33. Rb5 {[%emt 0:02:09]} Qc6 {[%emt 0:00:02]} 34. Qa2 {[%emt 0:02:55]} (34. Rxa5 $6 g6 35. Qb2 fxe5 $16) (34. Bxa5 Ra8 35. Qb2 Qc8 $18) 34... Qe4 {[%emt 0:05:02]} 35. Qf2 {[%emt 0:00:52]} (35. Bxa5 Rc8 $18) 35... g5 {[%emt 0:00:54]} 36. Qf3 {[%emt 0:04:25]} (36. Bxa5 Ra8 37. Qf3 Qxf3 38. Nxf3 gxf4 $16) (36. Rxa5 fxe5 37. fxe5 h6 $18) 36... Qxf3 {[%emt 0:02:26]} 37. Nxf3 {[%emt 0:00:03]} gxf4 {[%emt 0:00:07]} 38. gxf4 {[%emt 0:00:06]} Ng7 {[%emt 0:00:03]} 39. exf6 {[%emt 0:02:36]} Nf5 {[%emt 0:00:09]} 40. Be5 {[%emt 0:01:53]} c3 {[%emt 0:03:11]} 41. Rb7 $2 {[%emt 0:13:28]} (41. Rxa5 c2 42. Bb2 Rb8 $11) (41. Bxc3 $18 {and the rest is easy.} Nxd6 42. Rg5+ (42. Rxa5 Ne4 $18) (42. Bxa5 Rc8 $18) 42... Kf8 43. Rxa5 (43. Bxa5 Rb8 $16)) 41... Nxd6 $16 {[%emt 0:03:55]} 42. Bxd6 {[%emt 0:02:44]} Nxf6 {[%emt 0:00:03] [#]} 43. Ba3 $1 {[%emt 0:04:19]} Rd1+ {[%emt 0:01:49]} 44. Kf2 {[%emt 0:04:18]} Ra1 {[%emt 0:00:14]} 45. Rb8+ {[%emt 0:00:23]} Kg7 {[%emt 0:00:01] [#]} 46. Bf8+ $1 {[%emt 0:02:03]} Kg6 {[%emt 0:00:01]} 47. Nd4 {[%emt 0:02:58]} Rxa4 {[%emt 0:08:41]} 48. Ne2 {[%emt 0:00:05]} (48. Nxe6 $6 Kf5 $18) 48... Rc4 {[%emt 0:00:04]} 49. Ba3 {[%emt 0:01:28]} c2 {[%emt 0:01:04]} ({Black should try} 49... Nd5) 50. Bc1 {[%emt 0:03:02]} Nd5 {[%emt 0:00:20]} 51. Rf8 {[%emt 0:00:38]} a4 {[%emt 0:00:34]} 52. Kf3 {[%emt 0:00:33]} Nb4 {[%emt 0:02:52]} 53. Ke3 {[%emt 0:00:48]} Na2 $1 {[%emt 0:00:38]} 54. Kd3 {[%emt 0:00:36]} Nxc1+ {[%emt 0:00:07]} 55. Nxc1 {[%emt 0:00:03]} (55. Kxc4 $2 Nxe2 56. Kd3 c1=Q $19 (56... c1=B 57. Kxe2 Kg7 58. Ra8 $14)) 55... Kg7 {[%emt 0:00:22]} 56. Rf5 {[%emt 0:01:07]} Rb4 {[%emt 0:02:42]} (56... exf5 $11 57. Kxc4 Kg6) 57. Rg5+ $14 {[%emt 0:00:03]} Kf6 {[%emt 0:00:11]} 58. Rg4 {[%emt 0:00:32]} a3 {[%emt 0:00:31]} 59. Rh4 {[%emt 0:00:35]} ({Don't play} 59. Kxc2 Rb2+ 60. Kc3 Rf2 $15) 59... Ra4 {[%emt 0:01:03]} 60. Na2 {[%emt 0:00:43]} (60. Kxc2 a2 61. Nxa2 (61. Rh6+ $2 Kg7 $19) 61... Rxa2+ 62. Kd3 Kg6) 60... c1=Q {[%emt 0:00:15]} 1/2-1/2

[Event "45th FIDE Olympiad 2024"]
[Site "Budapest"]
[Date "2024.09.13"]
[Round "3.58"]
[White "Pride, Avian"]
[Black "Abdellahi, Khaled Abdellahi"]
[Result "0-1"]
[ECO "D14"]
[WhiteElo "1743"]
[BlackElo "1894"]
[Annotator "NA RC"]
[PlyCount "158"]
[EventDate "2024.09.05"]
[EventType "team-tourn"]
[EventCountry "HUN"]
[SourceTitle "playchess.com"]
[Source "ChessBase"]
[SourceQuality "1"]
[WhiteTeam "Bahamas"]
[BlackTeam "Mauritania"]
[WhiteTeamCountry "BAH"]
[BlackTeamCountry "MAU"]
[TimeControl "40/5400+30:1800+30"]

1. d4 d5 2. c4 c6 3. cxd5 cxd5 4. Nc3 Nc6 5. Nf3 Nf6 6. Bf4 Bf5 7. e3 e6 8. Bb5 Bd6 9. Bxd6 Qxd6 10. O-O O-O 11. a3 h6 12. h3 Rac8 13. Rc1 a6 14. Bd3 Bxd3 15. Qxd3 Na5 16. Nd2 Qd7 17. Ne2 b5 18. b4 Nc4 19. Nb3 Qa7 20. Nc5 Rfd8 21. f3 Nd7 22. Rfd1 Nb2 23. Qb3 Nxd1 24. Qxd1 Nxc5 25. bxc5 a5 26. Qb3 Rb8 27. e4 dxe4 28. fxe4 Rdc8 29. Nf4 b4 30. a4 e5 31. Nd3 exd4 32. Rf1 Qe7 33. Kh1 Qe6 34. Qd5 Rd8 35. Qxe6 fxe6 36. e5 b3 37. Rb1 b2 38. Kg1 Rb3 39. Nf2 Rc8 40. Ne4 Rc6 41. Kf2 Re3 42. Nd2 Rxe5 43. Rxb2 Rexc5 44. Ke2 Rc3 45. Rb5 Re3+ 46. Kd1 d3 47. Rxa5 Re2 48. Ra8+ Kh7 49. Rd8 Rxg2 50. Rxd3 Rc5 51. Re3 Rd5 52. Re2 Rxe2 53. Kxe2 Rd4 54. a5 Ra4 55. Nb3 Ra3 56. Nd4 Rxa5 57. Kf3 e5 58. Nc6 Ra3+ 59. Kg4 e4 60. Nd4 Kg6 61. Ne2 h5+ 62. Kf4 Kf6 63. Kxe4 Rxh3 64. Ng1 Rh1 65. Nf3 g5 66. Nd2 Rh3 67. Nf1 g4 68. Nd2 Ra3 69. Kf4 Ra4+ 70. Kg3 Kg5 71. Nf1 h4+ 72. Kg2 Ra2+ 73. Kh1 g3 74. Ne3 h3 75. Kg1 Re2 76. Ng2 Rxg2+ 77. Kf1 Rf2+ 78. Kg1 Kg4 79. Kh1 Rf1# 0-1

[Event "45th FIDE Olympiad 2024"]
[Site "Budapest"]
[Date "2024.09.13"]
[Round "3.59"]
[White "Indjic, Aleksandar"]
[Black "Peng, Li Min"]
[Result "1-0"]
[ECO "D41"]
[WhiteElo "2611"]
[BlackElo "2514"]
[Annotator "RC"]
[PlyCount "133"]
[EventDate "2024.09.05"]
[EventType "team-tourn"]
[EventCountry "HUN"]
[SourceTitle "playchess.com"]
[Source "ChessBase"]
[SourceQuality "1"]
[WhiteTeam "Serbia"]
[BlackTeam "Switzerland"]
[WhiteTeamCountry "SRB"]
[BlackTeamCountry "SUI"]
[TimeControl "40/5400+30:1800+30"]

1. c4 {[%emt 0:00:07]} Nf6 {[%emt 0:00:33]} 2. Nc3 {[%emt 0:00:17]} d5 {[%emt 0:01:10]} 3. cxd5 {[%emt 0:01:27]} Nxd5 {[%emt 0:00:06]} 4. Nf3 {[%emt 0:00:44]} e6 {[%emt 0:01:40]} 5. e4 {[%emt 0:10:17]} Nxc3 {[%emt 0:00:14]} 6. bxc3 {[%emt 0:00:06]} c5 {[%emt 0:00:09]} 7. Rb1 {[%emt 0:00:05]} Nc6 {[%emt 0:11:45]} 8. d4 {[%emt 0:01:14]} cxd4 {[%emt 0:01:48]} 9. cxd4 {[%emt 0:00:06]} Bb4+ {[%emt 0:00:24]} 10. Bd2 {[%emt 0:00:12]} Bxd2+ {[%emt 0:00:08]} 11. Qxd2 {[%emt 0:00:06]} O-O {[%emt 0:00:12]} 12. Bb5 {[%emt 0:00:03]} Qd6 {[%emt 0:18:02]} 13. O-O {[%emt 0:05:35]} Rd8 {[%emt 0:09:01]} 14. Rfd1 {[%emt 0:08:03]} a6 {[%emt 0:00:23]} 15. Bxc6 {[%emt 0:01:15]} Qxc6 {[%emt 0:00:08]} 16. Qa5 {[%emt 0:00:59]} Bd7 {[%emt 0:19:19]} 17. d5 {[%emt 0:18:42]} exd5 {[%emt 0:00:04]} 18. exd5 {[%emt 0:16:17]} Qa4 {[%emt 0:11:06]} 19. Qb6 {[%emt 0:00:09]} Bf5 {[%emt 0:08:31]} 20. Ra1 {[%emt 0:01:29]} Qb5 {[%emt 0:00:47]} 21. Qd4 {[%emt 0:00:44]} Rd6 {[%emt 0:01:32]} 22. a4 {[%emt 0:00:24]} Qb6 {[%emt 0:02:18]} 23. g4 {[%emt 0:12:49]} Qxd4 {[%emt 0:01:47]} 24. Rxd4 {[%emt 0:00:06]} Bg6 {[%emt 0:02:14]} 25. Nh4 {[%emt 0:14:46]} Rad8 {[%emt 0:03:01]} 26. Rad1 {[%emt 0:00:22]} Bc2 {[%emt 0:00:05]} 27. Rc1 {[%emt 0:03:32]} Bb3 {[%emt 0:03:28]} 28. Nf5 {[%emt 0:00:08]} R6d7 {[%emt 0:00:01]} 29. Ne3 {[%emt 0:00:09]} g6 {[%emt 0:00:03]} 30. g5 {[%emt 0:02:14]} h5 {[%emt 0:01:49]} 31. gxh6 {[%emt 0:01:08]} f5 {[%emt 0:00:48]} 32. Rb4 {[%emt 0:00:33]} Bxd5 {[%emt 0:00:24]} 33. Nxd5 {[%emt 0:00:04]} Rxd5 {[%emt 0:00:03]} 34. Rxb7 {[%emt 0:00:06]} Rd1+ {[%emt 0:00:45]} 35. Rxd1 {[%emt 0:00:08]} Rxd1+ {[%emt 0:00:03]} 36. Kg2 {[%emt 0:00:06]} Rd4 {[%emt 0:00:04]} 37. a5 {[%emt 0:00:18]} Ra4 {[%emt 0:00:45]} 38. Kg3 {[%emt 0:02:34]} g5 {[%emt 0:02:24]} 39. Rg7+ {[%emt 0:00:50]} Kh8 {[%emt 0:00:03]} 40. Rxg5 {[%emt 0:00:36]} Rxa5 {[%emt 0:00:04]} 41. Rg6 {[%emt 0:02:55]} Kh7 {[%emt 0:14:05]} 42. Rf6 {[%emt 0:00:19]} Ra1 {[%emt 0:00:11]} 43. f3 {[%emt 0:01:05]} Rg1+ {[%emt 0:07:12]} 44. Kf4 {[%emt 0:00:20]} Rh1 {[%emt 0:00:03]} 45. Rxa6 {[%emt 0:05:59]} Rxh2 {[%emt 0:00:05]} 46. Kxf5 {[%emt 0:00:25]} Rh5+ {[%emt 0:00:03]} 47. Ke4 {[%emt 0:00:27]} Rb5 {[%emt 0:04:27]} 48. f4 {[%emt 0:00:23]} Rb1 {[%emt 0:06:40]} 49. f5 {[%emt 0:02:45]} Re1+ {[%emt 0:00:22]} 50. Kf4 {[%emt 0:00:13]} Rf1+ {[%emt 0:00:24]} 51. Kg5 {[%emt 0:00:06]} Rg1+ {[%emt 0:00:55]} 52. Kf6 {[%emt 0:04:33]} Rf1 {[%emt 0:00:16]} 53. Ra8 {[%emt 0:02:15]} Rb1 {[%emt 0:02:43]} 54. Re8 {[%emt 0:01:50]} Rb2 {[%emt 0:02:00]} 55. Rd8 {[%emt 0:03:17]} Ra2 {[%emt 0:00:43]} 56. Rd1 {[%emt 0:04:31]} Ra3 {[%emt 0:00:38]} 57. Re1 {[%emt 0:02:16]} Ra2 {[%emt 0:00:08]} 58. Re8 {[%emt 0:02:18]} Ra1 {[%emt 0:00:11]} 59. Rd8 {[%emt 0:00:17]} Ra2 {[%emt 0:00:02]} 60. Ke7 {[%emt 0:01:44]} Re2+ {[%emt 0:00:46]} 61. Kf7 {[%emt 0:00:30]} Ra2 {[%emt 0:00:01]} 62. f6 {[%emt 0:00:49]} Ra7+ {[%emt 0:00:37]} 63. Ke6 {[%emt 0:00:08]} Ra6+ {[%emt 0:00:14]} 64. Ke7 {[%emt 0:00:12]} Ra7+ {[%emt 0:00:59]} 65. Rd7 {[%emt 0:00:10]} Ra1 {[%emt 0:00:59]} 66. f7 {[%emt 0:00:06]} Re1+ {[%emt 0:00:08]} 67. Kd8 {[%emt 0:00:04]} 1-0

[Event "45th FIDE Olympiad 2024"]
[Site "Budapest"]
[Date "2024.09.13"]
[Round "3.59"]
[White "Cheikhna, Mohamed Lemine"]
[Black "Whyms, Chapell"]
[Result "1-0"]
[ECO "B10"]
[WhiteElo "1884"]
[BlackElo "1701"]
[Annotator "NA RC"]
[PlyCount "57"]
[EventDate "2024.09.05"]
[EventType "team-tourn"]
[EventCountry "HUN"]
[SourceTitle "playchess.com"]
[Source "ChessBase"]
[SourceQuality "1"]
[WhiteTeam "Mauritania"]
[BlackTeam "Bahamas"]
[WhiteTeamCountry "MAU"]
[BlackTeamCountry "BAH"]
[TimeControl "40/5400+30:1800+30"]

1. e4 c6 2. d3 d5 3. Nf3 dxe4 4. dxe4 Qxd1+ 5. Kxd1 Nf6 6. Nfd2 Ng4 7. Ke1 e5 8. Nb3 Be6 9. f3 Nf6 10. Be3 Nbd7 11. N1d2 a5 12. a4 Bb4 13. c3 Be7 14. Bc4 Bxc4 15. Nxc4 b6 16. Ke2 O-O 17. Rhd1 Rfd8 18. Rd2 b5 19. Ncxa5 Nb8 20. Rxd8+ Bxd8 21. Nb7 Be7 22. a5 Na6 23. N3c5 Bxc5 24. Nxc5 Nxc5 25. Bxc5 Nd7 26. Be3 Nb8 27. Rd1 Kf8 28. Rd8+ Ke7 29. Bb6 1-0

[Event "45th FIDE Olympiad 2024"]
[Site "Budapest"]
[Date "2024.09.13"]
[Round "3.60"]
[White "Georgiadis, Nico"]
[Black "Ivic, Velimir"]
[Result "1/2-1/2"]
[ECO "A20"]
[WhiteElo "2510"]
[BlackElo "2599"]
[Annotator "RC"]
[PlyCount "46"]
[EventDate "2024.09.05"]
[EventType "team-tourn"]
[EventCountry "HUN"]
[SourceTitle "playchess.com"]
[Source "ChessBase"]
[SourceQuality "1"]
[WhiteTeam "Switzerland"]
[BlackTeam "Serbia"]
[WhiteTeamCountry "SUI"]
[BlackTeamCountry "SRB"]
[TimeControl "40/5400+30:1800+30"]

1. c4 {[%emt 0:00:08]} Nf6 {[%emt 0:00:40]} 2. g3 {[%emt 0:00:08]} e5 {[%emt 0:11:02]} 3. Bg2 {[%emt 0:00:16]} c6 {[%emt 0:03:49]} 4. Nf3 {[%emt 0:03:39]} e4 {[%emt 0:00:09]} 5. Nd4 {[%emt 0:00:07]} Qb6 {[%emt 0:00:16]} 6. Nb3 {[%emt 0:00:12]} a5 {[%emt 0:01:18]} 7. d3 {[%emt 0:01:57]} Bb4+ {[%emt 0:00:10]} 8. Nc3 {[%emt 0:07:23]} a4 {[%emt 0:00:16]} 9. Nd2 {[%emt 0:01:44]} exd3 {[%emt 0:03:26]} 10. exd3 {[%emt 0:10:43]} O-O {[%emt 0:01:08]} 11. O-O {[%emt 0:00:06]} Qa5 {[%emt 0:00:49]} 12. Qc2 {[%emt 0:11:32]} d5 {[%emt 0:02:02]} 13. d4 {[%emt 0:00:31]} Be6 {[%emt 0:11:16]} 14. c5 {[%emt 0:14:10]} b6 {[%emt 0:01:25]} 15. cxb6 {[%emt 0:05:33]} Nbd7 {[%emt 0:01:13]} 16. b7 {[%emt 0:01:43]} Ra7 {[%emt 0:00:29]} 17. Ne2 {[%emt 0:04:23]} Rxb7 {[%emt 0:06:39]} 18. a3 {[%emt 0:00:14]} Be7 {[%emt 0:01:55]} 19. Nf4 {[%emt 0:04:36]} c5 {[%emt 0:03:41]} 20. Nf3 {[%emt 0:04:41]} Ne4 {[%emt 0:10:16]} 21. Nd2 {[%emt 0:06:14]} Nef6 {[%emt 0:12:56]} 22. Nf3 {[%emt 0:00:06]} Ne4 {[%emt 0:01:53]} 23. Nd2 {[%emt 0:09:07]} Nef6 {[%emt 0:07:11]} 1/2-1/2

[Event "45th FIDE Olympiad 2024"]
[Site "Budapest"]
[Date "2024.09.13"]
[Round "3.60"]
[White "Skinner, Francis"]
[Black "Abdou, Ahmed Alem"]
[Result "0-1"]
[ECO "B15"]
[WhiteElo "1628"]
[BlackElo "1897"]
[Annotator "NA RC"]
[PlyCount "70"]
[EventDate "2024.09.05"]
[EventType "team-tourn"]
[EventCountry "HUN"]
[SourceTitle "playchess.com"]
[Source "ChessBase"]
[SourceQuality "1"]
[WhiteTeam "Bahamas"]
[BlackTeam "Mauritania"]
[WhiteTeamCountry "BAH"]
[BlackTeamCountry "MAU"]
[TimeControl "40/5400+30:1800+30"]

1. e4 c6 2. d4 d5 3. Nc3 dxe4 4. Nxe4 Nf6 5. Ng3 h5 6. h3 h4 7. N3e2 Bf5 8. Nf3 Ne4 9. c3 e6 10. Be3 Bd6 11. Nf4 Qc7 12. Nd3 Nd7 13. Qb3 a6 14. O-O-O b5 15. Nd2 a5 16. Nxe4 Bxe4 17. Qc2 a4 18. Qd2 O-O 19. f3 Bd5 20. Kb1 c5 21. dxc5 Nxc5 22. Nb4 Rfd8 23. Nxd5 exd5 24. Bg5 Rdb8 25. Qxd5 Bf8 26. Bxb5 Qb6 27. c4 Qg6+ 28. Kc1 Nb3+ 29. axb3 axb3 30. Kd2 Qc2+ 31. Ke3 Re8+ 32. Bxe8 Rxe8+ 33. Kf4 Qf2 34. Bxh4 Qxh4+ 35. g4 g6 0-1